bitfinex-derivatives/quotes_BNBF0:USTF0_20250425
["timestamp","ask_amount","ask_price","bid_price","bid_amount"]
[1745623808586,0.29022008,600.51,598.99,0.30615179]
[1745623808788,0.29022008,600.51,599.0,0.30615179]
[1745623808982,0.29022008,600.51,599.01,0.30615179]
[1745623809187,0.29022008,600.51,598.93,0.30615179]
[1745623809489,0.29022008,600.51,598.94,0.30615179]
[1745623809788,0.29022008,600.51,598.95,0.30615179]
[1745623809990,0.29022008,600.51,598.96,0.30615179]
[1745623810282,0.29022008,600.51,598.97,0.30615179]
[1745623810488,1.27053969,600.62,598.75,1.05670979]
[1745623810489,1.27053969,600.62,598.98,0.30615179]
[1745623810787,0.29022008,600.51,598.92,0.29022008]
[1745623810983,0.29022008,600.51,598.93,0.30615179]
[1745623811287,0.29022008,600.51,598.94,0.30615179]
[1745623811488,0.29022008,600.51,598.95,0.30615179]
[1745623811787,0.29022008,600.51,598.96,0.30615179]
[1745623812088,0.29022008,600.51,598.97,0.30615691]
[1745623812283,0.29022008,600.51,598.98,0.30615691]
[1745623812486,0.29022008,600.51,598.93,0.30615691]
[1745623812682,0.29022008,600.51,598.94,0.30615691]
[1745623812888,0.29022008,600.51,598.95,0.30615691]
[1745623813089,0.29022008,600.51,598.96,0.30615691]
[1745623813384,0.29022008,600.51,598.97,0.30615691]
[1745623813589,1.27053969,600.61,598.79,1.05670979]
[1745623813788,1.27053969,600.61,598.8,0.30616097]
[1745623813989,0.29020798,600.5,598.94,0.29020798]
[1745623814183,1.27053969,600.61,598.95,0.30616097]
[1745623814384,1.27053969,600.6,598.95,0.30616097]
[1745623814686,1.27053969,600.6,598.96,0.30616097]
[1745623814886,1.27053969,600.6,598.97,0.30616097]
[1745623815086,0.29022613,600.59,598.94,0.29022613]
[1745623815285,0.29022613,600.59,598.98,0.30616097]
[1745623815484,0.29022613,600.59,598.99,0.30616097]
[1745623815688,0.29022613,600.59,599.0,0.30616097]
[1745623815986,0.29022613,600.59,599.01,0.30616097]
[1745623816192,0.29022613,600.59,598.95,0.30616097]
[1745623816390,0.29022613,600.59,598.96,0.30616097]
[1745623816592,1.27053969,600.6,598.97,0.30616097]
[1745623816786,0.29020677,600.58,598.98,0.30616097]
[1745623817086,0.29020677,600.58,598.99,0.30616097]
[1745623817289,0.29020677,600.58,599.0,0.30616097]
[1745623817490,0.29020677,600.58,599.01,0.30616097]
[1745623817690,0.29020677,600.58,599.02,0.30616097]
[1745623817888,0.29020677,600.58,599.03,0.30616097]
[1745623818088,0.29020677,600.58,599.04,0.30616097]
[1745623818288,0.29020677,600.58,599.05,0.30616097]
[1745623818489,0.29020677,600.58,599.06,0.30616097]
[1745623818691,0.29020677,600.58,598.94,0.29020677]
[1745623818888,0.29020677,600.58,598.95,0.30615282]
[1745623819091,0.29020677,600.58,598.96,0.30615282]
[1745623819390,1.27053969,600.6,598.97,0.30615282]
[1745623819590,1.27053969,600.6,598.98,0.30615282]
[1745623819790,0.29022613,600.59,598.99,0.30615282]
[1745623819991,0.29022613,600.59,599.0,0.30615282]
[1745623820194,0.29022613,600.59,599.01,0.30615282]
[1745623820388,0.29022613,600.59,598.95,0.29022613]
[1745623820588,0.29022613,600.59,598.96,0.30615282]
[1745623820789,0.29022613,600.59,598.97,0.30615282]
[1745623820989,0.29022613,600.59,598.98,0.30615282]
[1745623821292,0.29022613,600.59,598.99,0.30615282]
[1745623821491,0.29022613,600.59,599.0,0.30615282]
[1745623821689,0.29022613,600.59,599.01,0.30615282]
[1745623821894,0.29022613,600.59,598.95,0.29022613]
[1745623821895,1.27053969,600.45,599.02,0.30615282]
[1745623822092,1.27053969,600.45,599.03,0.30615282]
[1745623822291,1.27053969,600.45,599.04,0.30615282]
[1745623822496,1.27053969,600.45,599.05,0.30615282]
[1745623822796,1.27053969,600.45,599.06,0.30615282]
[1745623822996,1.27053969,600.45,599.07,0.30615282]
[1745623823196,1.27053969,600.45,598.95,0.29022371]
[1745623823197,1.27053969,600.45,599.08,0.30615282]
[1745623823394,1.27053969,600.45,599.09,0.30615282]
[1745623823595,1.27053969,600.45,599.1,0.30615282]
[1745623823796,1.27053969,600.45,599.11,0.30615282]
[1745623823996,1.27053969,600.45,598.96,0.30615282]
[1745623824197,1.27053969,600.45,598.97,0.30615282]
[1745623824494,1.5607634,600.48,598.98,0.30615282]
[1745623824697,1.5607634,600.48,598.99,0.30615282]
[1745623824898,1.5607634,600.48,599.0,0.30615282]
[1745623825097,1.5607634,600.48,598.96,0.30615282]
[1745623825299,1.5607634,600.48,598.97,0.30615282]
[1745623825498,1.27053969,600.48,598.98,0.30615282]
[1745623825699,1.27053969,600.48,598.99,0.3061503]
[1745623825896,1.56075977,600.48,599.0,0.3061503]
[1745623826196,1.56075977,600.48,599.01,0.3061503]
[1745623826401,1.56075977,600.48,598.96,0.3061503]
[1745623826601,1.56075977,600.48,598.97,0.3061503]
[1745623826800,1.56075977,600.48,598.98,0.3061503]
[1745623827001,1.56075977,600.48,598.96,0.3061503]
[1745623827198,1.56075977,600.48,598.97,0.3061503]
[1745623827498,0.29022008,600.48,598.98,0.30615032]
[1745623827702,0.29022008,600.48,598.99,0.30615032]
[1745623828003,0.29022008,600.48,599.0,0.30615032]
[1745623828301,0.29022008,600.48,599.01,0.30615032]
[1745623828502,0.29022008,600.48,598.96,0.30615032]
[1745623828702,0.29022008,600.48,598.97,0.30615032]
[1745623829003,0.29022008,600.48,598.98,0.30615032]
[1745623829303,0.29022008,600.48,598.99,0.30615032]
[1745623829502,0.29022008,600.48,599.0,0.30615032]
[1745623829696,0.29022008,600.48,599.01,0.30615032]
[1745623829898,0.29022008,600.48,599.02,0.30615032]
[1745623830204,0.29022008,600.48,599.03,0.30615032]
[1745623830403,0.29022008,600.48,598.96,0.30615032]
[1745623830599,0.29022008,600.48,599.04,0.30615032]
[1745623830903,0.29022008,600.48,599.05,0.30615032]
[1745623831098,0.29022008,600.48,598.96,0.30615032]
[1745623831298,0.29022008,600.48,598.97,0.30615032]
[1745623831503,1.27053969,600.63,598.96,0.30615032]
[1745623831703,0.29020193,600.48,598.97,0.30615032]
[1745623831904,1.27053969,600.63,598.96,0.30615032]
[1745623832104,1.27053969,600.63,598.97,0.30615032]
[1745623832401,2.15987547,600.75,598.95,0.29020193]
[1745623832607,1.27053969,600.78,598.96,0.3061632]
[1745623832806,0.29020919,600.62,598.96,0.3061632]
[1745623833007,1.27053969,600.78,598.96,0.3061632]
[1745623833902,0.29019104,600.77,598.96,0.3061632]
[1745623837508,1.27053969,600.94,598.96,0.3061632]
[1745623837708,1.27053969,600.94,598.51,0.3061632]
[1745623838007,1.27053969,600.94,598.52,0.3061632]
[1745623838208,1.27053969,600.94,598.53,0.3061632]
[1745623838406,1.27053969,600.94,598.54,0.3061632]
[1745623838606,1.27053969,600.94,598.55,0.3061632]
[1745623838806,0.29022613,600.93,598.56,0.3061632]
[1745623839003,0.29022613,600.93,598.57,0.3061632]
[1745623839304,0.29022613,600.93,598.58,0.3061632]
[1745623839511,0.29022613,600.93,598.59,0.3061632]
[1745623839909,0.29022613,600.93,598.6,0.3061632]
[1745623840109,0.29022613,600.93,598.61,0.3061632]
[1745623840409,0.29022613,600.93,598.55,0.29022613]
[1745623840410,1.27053969,600.91,598.62,0.3061632]
[1745623840605,1.27053969,600.91,598.56,0.3061632]
[1745623840803,1.27053969,600.91,598.57,0.3061632]
[1745623841006,0.29023582,600.9,598.58,0.59639902]
[1745623841205,0.29023582,600.9,598.59,0.3061632]
[1745623841404,0.29023582,600.9,598.6,0.3061632]
[1745623841608,0.29023582,600.9,598.61,0.3061632]
[1745623841808,0.29023582,600.9,598.62,0.3061632]
[1745623842005,0.29023582,600.9,598.63,0.3061632]
[1745623842205,0.29023582,600.9,598.64,0.3061632]
[1745623842406,0.29023582,600.9,598.58,0.29023582]
[1745623842609,0.29023582,600.9,598.59,0.30620122]
[1745623842809,0.29023582,600.9,598.58,0.29023582]
[1745623842810,0.29023582,600.9,598.6,0.30620122]
[1745623843010,0.29023582,600.9,598.61,0.30620122]
[1745623843208,0.29023582,600.9,598.62,0.30620122]
[1745623843409,0.29023582,600.9,598.63,0.30620122]
[1745623843613,1.27053969,600.92,598.64,0.30620122]
[1745623843812,0.29023098,600.89,598.65,0.30620122]
[1745623844012,0.29023098,600.89,598.66,0.30620122]
[1745623844212,0.29023098,600.89,598.6,0.29023098]
[1745623844407,0.29023098,600.89,598.61,0.30619097]
[1745623844612,0.29023098,600.89,598.62,0.30619097]
[1745623844907,0.29023098,600.89,598.63,0.30619097]
[1745623845213,1.27053969,600.77,598.64,0.30619097]
[1745623845407,1.27053969,600.77,598.65,0.30619097]
[1745623845610,1.27053969,600.77,598.66,0.30619097]
[1745623845807,1.27053969,600.77,598.67,0.3061958]
[1745623846009,1.27053969,600.77,598.6,0.29023098]
[1745623846010,1.27053969,600.77,598.68,0.3061958]
[1745623846211,1.27053969,600.77,598.69,0.3061958]
[1745623846513,1.27053969,600.77,598.7,0.3061958]
[1745623846707,1.27053969,600.77,598.71,0.3061958]
[1745623846913,1.27053969,600.77,598.61,0.3061958]
[1745623847212,1.27053969,600.77,598.62,0.3061958]
[1745623847414,1.27053969,600.77,598.6,0.29023098]
[1745623847613,1.27053969,600.76,598.61,0.30621873]
[1745623847809,1.27053969,600.76,598.62,0.30621873]
[1745623848115,1.27053969,600.76,598.63,0.30621873]
[1745623848413,1.27053969,600.76,598.64,0.30621873]
[1745623848616,1.27053969,600.76,598.65,0.30621873]
[1745623848816,1.27053969,600.76,598.66,0.30621873]
[1745623849018,1.27053969,600.76,598.61,0.30621873]
[1745623849215,1.27053969,600.76,598.62,0.30621873]
[1745623849418,1.27053969,600.76,598.63,0.30621873]
[1745623849716,1.27053969,600.76,598.51,1.05670979]
[1745623849717,1.27053969,600.76,598.64,0.30621873]
[1745623849912,1.27053969,600.76,598.65,0.30621873]
[1745623850113,1.27053969,600.81,598.66,0.30621873]
[1745623850318,1.27053969,600.81,598.41,1.05670979]
[1745623850319,1.27053969,600.81,598.67,0.30621873]
[1745623850519,1.27053969,600.81,598.42,0.30621873]
[1745623850718,1.27053969,600.81,598.43,0.30621873]
[1745623850919,0.29026487,600.8,598.63,0.29026487]
[1745623851219,0.29026487,600.8,598.64,0.30621873]
[1745623851519,0.29026487,600.8,598.65,0.30621873]
[1745623851720,0.29026487,600.8,598.66,0.30621873]
[1745623852018,0.29026487,600.8,598.67,0.30621873]
[1745623852218,0.29026487,600.8,598.68,0.30621873]
[1745623852413,0.29026487,600.8,598.69,0.30621873]
[1745623852616,1.27053969,600.81,598.65,0.29026487]
[1745623852814,1.27053969,600.81,598.66,0.30621873]
[1745623853114,1.27053969,600.81,598.67,0.30621873]
[1745623853315,1.27053969,600.81,598.68,0.30621873]
[1745623853513,1.27053969,600.81,598.69,0.30621873]
[1745623853712,1.27053969,600.81,598.7,0.30621873]
[1745623854015,0.29023582,600.8,598.71,0.30621873]
[1745623854217,0.29023582,600.8,598.66,0.30621873]
[1745623854418,0.29023582,600.8,598.67,0.30621873]
[1745623854615,0.29023582,600.8,598.68,0.30621873]
[1745623854822,0.29023582,600.8,598.66,0.30621873]
[1745623855120,0.29023582,600.8,598.67,0.30621873]
[1745623855321,0.29023582,600.8,598.68,0.30621873]
[1745623855522,1.27053969,600.81,598.68,0.30621873]
[1745623855717,1.27053969,600.81,598.69,0.30621873]
[1745623856022,1.27053969,600.81,598.7,0.30621873]
[1745623856226,1.27053969,600.81,598.41,0.30621873]
[1745623856420,1.27053969,600.81,598.42,0.30621873]
[1745623856617,1.27053969,600.81,598.41,0.30621873]
[1745623856923,0.29029755,600.8,598.43,0.29029755]
[1745623857123,0.29029755,600.8,598.44,0.30621873]
[1745623857316,0.29029755,600.8,598.45,0.30621873]
[1745623857622,0.29029755,600.8,598.46,0.30621873]
[1745623857823,0.29029755,600.8,598.47,0.30621873]
[1745623858123,0.29029755,600.8,598.48,0.30621873]
[1745623858320,0.29029755,600.8,598.44,0.30621873]
[1745623858518,0.29029755,600.8,598.43,0.29029755]
[1745623858519,1.27053969,600.98,598.45,0.30621873]
[1745623858723,1.27053969,600.98,598.46,0.30621873]
[1745623859023,1.27053969,600.98,598.47,0.30621873]
[1745623859223,1.27053969,600.98,598.48,0.30621873]
[1745623859524,1.27053969,600.98,598.49,0.30621873]
[1745623859725,0.29033873,600.97,598.12,0.30621873]
[1745623859928,0.29033873,600.97,598.45,0.29033873]
[1745623860125,0.29033873,600.97,598.13,0.30621873]
[1745623860126,0.29033873,600.97,598.46,0.30621873]
[1745623860425,0.29033873,600.97,598.11,1.05670979]
[1745623860626,0.29033873,600.97,598.12,0.30631028]
[1745623860820,0.29033873,600.97,598.13,0.30631028]
[1745623861127,0.29033873,600.97,598.14,0.30631028]
[1745623861424,1.27053969,600.78,598.15,0.30631028]
[1745623861625,1.27053969,600.78,598.16,0.30631028]
[1745623861820,1.27053969,600.78,598.17,0.30631028]
[1745623862024,1.27053969,600.78,598.18,0.30631028]
[1745623862326,1.27053969,600.78,598.19,0.30631028]
[1745623862528,1.27053969,600.78,598.2,0.30631028]
[1745623862828,0.29036053,600.77,598.21,0.30631028]
[1745623863021,0.29036053,600.77,598.22,0.30631028]
[1745623863226,0.29036053,600.77,598.23,0.30631028]
[1745623863428,0.29036053,600.77,598.24,0.30631028]
[1745623863727,0.29036053,600.77,598.25,0.30631028]
[1745623863927,0.29036053,600.77,598.26,0.30631028]
[1745623864127,0.29036053,600.77,598.27,0.30631028]
[1745623864423,0.29036053,600.77,598.28,0.30631028]
[1745623864624,0.29036053,600.77,598.29,0.30631028]
[1745623864822,0.29036053,600.77,598.3,0.30631028]
[1745623865124,0.29036053,600.77,598.31,0.30631028]
[1745623865325,0.29036053,600.77,598.32,0.30631028]
[1745623865628,0.29036053,600.77,598.33,0.30631028]
[1745623865825,0.29036053,600.77,598.34,0.30631028]
[1745623866023,0.29036053,600.77,598.35,0.30631028]
[1745623866228,0.29036053,600.77,598.36,0.30631028]
[1745623866424,0.29036053,600.77,598.15,0.29036053]
[1745623866624,0.29036053,600.77,598.16,0.30630322]
[1745623866827,0.29036053,600.77,598.17,0.30630322]
[1745623867128,0.29036053,600.77,598.18,0.30630322]
[1745623867425,0.29036053,600.77,598.19,0.30630322]
[1745623867628,1.27053969,600.81,598.2,0.30630322]
[1745623867829,1.27053969,600.82,598.21,0.30630322]
[1745623868026,0.29035447,600.76,598.22,0.30630322]
[1745623868223,0.29035447,600.76,598.23,0.30630322]
[1745623868428,0.29035447,600.76,598.24,0.30630322]
[1745623868628,0.29035447,600.76,598.25,0.30630322]
[1745623868824,0.29035447,600.76,598.26,0.30630322]
[1745623869024,0.29035447,600.76,598.27,0.30630322]
[1745623869430,0.29035447,600.76,598.28,0.30630322]
[1745623869635,0.29035447,600.76,598.29,0.30630322]
[1745623869826,0.29035447,600.76,598.3,0.30630322]
[1745623870028,0.29035447,600.76,598.31,0.30630322]
[1745623870233,0.29035447,600.76,598.32,0.30630322]
[1745623870528,1.27053969,600.82,598.33,0.30630322]
[1745623870732,1.27053969,600.82,598.34,0.30630322]
[1745623870932,1.27053969,600.45,598.35,0.30630322]
[1745623871131,1.27053969,600.45,598.36,0.30630322]
[1745623871332,1.27053969,600.45,598.37,0.30630322]
[1745623871532,1.27053969,600.45,598.38,0.30630322]
[1745623871832,1.27053969,600.45,598.39,0.30630322]
[1745623872131,1.27053969,600.45,598.4,0.30630322]
[1745623872332,1.27053969,600.45,598.41,0.30630322]
[1745623872529,1.27053969,600.45,598.42,0.30630322]
[1745623872733,1.27053969,600.45,598.43,0.30630322]
[1745623872933,1.27053969,600.45,598.44,0.30630322]
[1745623873134,1.27053969,600.46,598.45,0.30630322]
[1745623873436,1.27053969,600.46,598.46,0.30630322]
[1745623873733,1.27053969,600.46,598.47,0.30630322]
[1745623873931,1.27053969,600.46,598.48,0.30630322]
[1745623874128,1.27053969,600.46,598.49,0.30630322]
[1745623874333,1.27053969,600.46,598.5,0.30630322]
[1745623874534,1.27053969,600.46,598.34,1.05670979]
[1745623874535,1.27053969,600.43,598.51,0.30630322]
[1745623874735,1.27053969,600.43,598.52,0.30630322]
[1745623875035,1.27053969,600.43,598.53,0.30630322]
[1745623875337,1.27053969,600.43,598.34,1.05670979]
[1745623875634,1.27053969,600.43,598.35,0.30631117]
[1745623875933,1.27053969,600.43,598.36,0.30631117]
[1745623876235,1.27053969,600.43,598.37,0.30631117]
[1745623876535,1.27053969,600.43,598.38,0.30631117]
[1745623876734,1.27053969,600.43,598.39,0.30631117]
[1745623876934,1.27053969,600.43,598.4,0.30631117]
[1745623876935,0.29037749,600.42,598.4,0.30631117]
[1745623877136,0.29037749,600.42,598.41,0.30631117]
[1745623877333,0.29037749,600.42,598.42,0.30631117]
[1745623877529,0.29037749,600.42,598.43,0.30631117]
[1745623877931,0.29037749,600.42,598.44,0.30631117]
[1745623878134,0.29037749,600.42,598.45,0.30631117]
[1745623878335,0.29037749,600.42,598.46,0.30631117]
[1745623878635,0.29037749,600.42,598.47,0.30631117]
[1745623878842,0.29037749,600.42,598.48,0.30631117]
[1745623879131,0.29037749,600.42,598.49,0.30631117]
[1745623879337,0.29037749,600.42,598.5,0.30631117]
[1745623879533,1.27053969,600.5,598.51,0.30631117]
[1745623879735,0.29038113,600.41,598.52,0.30631117]
[1745623880031,0.29038113,600.41,598.53,0.30631117]
[1745623880231,1.27053969,600.5,598.54,0.30631117]
[1745623880535,1.27053969,600.5,598.55,0.30631117]
[1745623880832,0.29037386,600.49,598.56,0.30631117]
[1745623881032,0.29037386,600.49,598.57,0.30631117]
[1745623881231,0.29037386,600.49,598.58,0.30631117]
[1745623881431,0.29037386,600.49,598.4,0.29038113]
[1745623881432,0.29037386,600.49,598.59,0.30631117]
[1745623881634,0.29037386,600.49,598.6,0.30631117]
[1745623881935,0.29037386,600.49,598.61,0.30632503]
[1745623882133,0.29037386,600.49,598.41,0.30632503]
[1745623882436,0.29037386,600.49,598.4,0.29038113]
[1745623882637,1.27053969,600.54,598.41,0.3063254]
[1745623882830,1.27053969,600.54,598.42,0.3063254]
[1745623883030,1.27053969,600.54,598.43,0.3063254]
[1745623883235,1.27053969,600.54,598.44,0.3063254]
[1745623883435,1.27053969,600.54,598.45,0.3063254]
[1745623883636,1.27053969,600.54,598.25,1.05670979]
[1745623883637,1.27053969,600.54,598.46,0.3063254]
[1745623883837,0.29038718,600.53,598.47,0.3063254]
[1745623884040,0.29038718,600.53,598.48,0.3063254]
[1745623884240,0.29038718,600.53,598.49,0.3063254]
[1745623884241,1.27053969,600.52,598.49,0.3063254]
[1745623884433,1.27053969,600.52,598.5,0.3063254]
[1745623884634,1.27053969,600.52,598.51,0.3063254]
[1745623884837,1.27053969,600.52,598.52,0.3063254]
[1745623885038,1.27053969,600.52,598.53,0.3063254]
[1745623885339,1.27053969,600.52,598.54,0.3063254]
[1745623885532,1.27053969,600.52,598.55,0.3063254]
[1745623885733,1.27053969,600.52,598.56,0.3063254]
[1745623885934,1.27053969,600.52,598.57,0.3063254]
[1745623886132,1.27053969,600.52,598.58,0.3063254]
[1745623886334,1.27053969,600.52,598.59,0.3063254]
[1745623886639,1.27053969,600.52,598.6,0.3063254]
[1745623886834,1.27053969,600.52,598.61,0.3063254]
[1745623887036,1.27053969,600.52,598.62,0.3063254]
[1745623887234,1.27053969,600.48,598.43,0.3063254]
[1745623887439,1.27053969,600.48,598.44,0.3063254]
[1745623887738,1.27053969,600.48,598.45,0.3063254]
[1745623887941,1.27053969,600.48,598.46,0.3063254]
[1745623888141,1.27053969,600.48,598.47,0.3063254]
[1745623888337,1.27053969,600.48,598.48,0.3063254]
[1745623888538,1.27053969,600.48,598.49,0.3063254]
[1745623888737,0.29039324,600.47,598.5,0.3063254]
[1745623888937,0.29039324,600.47,598.51,0.3063254]
[1745623889241,0.29039324,600.47,598.52,0.3063254]
[1745623889537,0.29039324,600.47,598.53,0.3063254]
[1745623889743,1.27053969,600.33,598.54,0.3063254]
[1745623889939,1.27053969,600.33,598.55,0.3063254]
[1745623890242,1.27053969,600.33,598.56,0.3063254]
[1745623890442,1.27053969,600.33,598.57,0.3063254]
[1745623890643,1.27053969,600.33,598.58,0.3063254]
[1745623890838,1.27053969,600.33,598.59,0.3063254]
[1745623891043,1.27053969,600.33,598.6,0.3063254]
[1745623891244,1.27053969,600.33,598.61,0.3063254]
[1745623891543,1.27053969,600.33,598.62,0.3063254]
[1745623891740,1.27053969,600.33,598.3,0.3063254]
[1745623891940,1.27053969,600.33,598.31,0.3063254]
[1745623892145,1.27053969,600.33,598.32,0.3063254]
[1745623892345,1.27053969,600.33,598.33,0.3063254]
[1745623892545,1.27053969,600.33,598.34,0.3063254]
[1745623892743,1.27053969,600.26,598.35,0.3063254]
[1745623893045,1.27053969,600.26,598.36,0.3063636]
[1745623893246,1.27053969,600.26,598.37,0.3063636]
[1745623893442,1.27053969,600.26,598.38,0.3063636]
[1745623893648,1.27053969,600.26,598.39,0.3063636]
[1745623893945,1.27053969,600.26,598.4,0.3063636]
[1745623894247,1.27053969,600.26,598.41,0.3063636]
[1745623894445,1.27053969,600.26,598.42,0.3063636]
[1745623894645,1.27053969,600.23,598.43,0.3063636]
[1745623894844,1.27053969,600.23,598.44,0.3063636]
[1745623895044,1.27053969,600.23,598.45,0.3063636]
[1745623895242,1.27053969,600.23,598.46,0.3063636]
[1745623895446,1.27053969,600.23,598.47,0.3063636]
[1745623895644,1.27053969,600.23,598.48,0.3063636]
[1745623895948,1.27053969,600.23,598.38,1.05670979]
[1745623895949,0.29042111,600.22,598.39,0.29042111]
[1745623896149,0.29042111,600.22,598.4,0.30635133]
[1745623896352,0.29042111,600.22,598.41,0.30635133]
[1745623896548,0.29042111,600.22,598.42,0.30635133]
[1745623896756,0.29042111,600.22,598.43,0.30635133]
[1745623897052,0.29042111,600.22,598.44,0.30635133]
[1745623897250,0.29042111,600.22,598.45,0.30635133]
[1745623897449,0.29042111,600.22,598.46,0.30635133]
[1745623897754,1.27053969,600.24,598.47,0.30635114]
[1745623897956,0.29041869,600.21,598.48,0.30635114]
[1745623898149,0.29041869,600.21,598.49,0.30635114]
[1745623898349,0.29041869,600.21,598.5,0.30635114]
[1745623898553,0.29041869,600.21,598.51,0.30635114]
[1745623898754,0.29041869,600.21,598.52,0.30635114]
[1745623898949,0.29041869,600.21,598.53,0.30635114]
[1745623899150,0.29041869,600.21,598.42,0.29041869]
[1745623899450,1.27053969,600.16,598.43,1.36306135]
[1745623899654,1.27053969,600.16,598.44,0.30635156]
[1745623899853,1.27053969,600.16,598.45,0.30635156]
[1745623900055,1.27053969,600.16,598.43,1.05670979]
[1745623900056,1.27053969,600.16,598.46,0.30635156]
[1745623900256,1.27053969,600.16,598.47,0.30635156]
[1745623900553,1.27053969,600.16,598.48,0.30635156]
[1745623900756,1.27053969,600.16,598.49,0.30636347]
[1745623900953,1.27053969,600.16,598.5,0.30636347]
[1745623901256,1.27053969,600.16,598.51,0.30636347]
[1745623901457,1.27053969,600.16,598.52,0.30636347]
[1745623901659,1.27053969,600.16,598.44,0.30636347]
[1745623901957,1.27053969,600.16,598.45,0.30636347]
[1745623902155,1.27053969,600.16,598.46,0.30636347]
[1745623902356,1.27053969,600.16,598.47,0.30636347]
[1745623902553,1.27053969,600.16,598.48,0.30636347]
[1745623902757,1.27053969,600.16,598.49,0.30636347]
[1745623903057,1.27053969,600.16,598.5,0.30636347]
[1745623903253,1.27053969,600.16,598.51,0.30636347]
[1745623903453,1.27053969,600.16,598.52,0.30636347]
[1745623903653,1.27053969,600.16,598.41,0.30636347]
[1745623903854,0.29042475,600.15,598.46,0.29042475]
[1745623904053,0.29042475,600.15,598.47,0.30636279]
[1745623904253,0.29042475,600.15,598.48,0.30636279]
[1745623904459,0.29042475,600.15,598.46,0.29042475]
[1745623904460,0.29042475,600.15,598.49,0.30636279]
[1745623904657,0.29042475,600.15,598.5,0.30636279]
[1745623904958,0.29042475,600.15,598.51,0.30636279]
[1745623905155,0.29042475,600.15,598.47,0.30636279]
[1745623905355,0.29042475,600.15,598.48,0.30636308]
[1745623905554,0.29042475,600.15,598.49,0.30636308]
[1745623905757,0.29042475,600.15,598.5,0.30636308]
[1745623905957,0.29042475,600.15,598.51,0.30636308]
[1745623906259,0.29042475,600.15,598.52,0.30636308]
[1745623906459,1.27053969,600.38,598.53,0.30636308]
[1745623906659,1.27053969,600.38,598.26,0.30636308]
[1745623906860,2.15987547,601.01,598.25,1.05670979]
[1745623906861,1.27053969,600.36,598.25,1.05670979]
[1745623907056,1.27053969,600.36,598.49,0.29041869]
[1745623907258,1.27053969,600.36,598.5,0.30636339]
[1745623907561,1.27053969,600.36,598.51,0.30636339]
[1745623907760,1.27053969,600.36,598.52,0.30636339]
[1745623907955,1.27053969,600.36,598.53,0.30636339]
[1745623908156,1.27053969,600.36,598.51,0.30636339]
[1745623908357,1.27053969,600.36,598.5,0.29040657]
[1745623908561,1.27053969,600.36,598.51,0.30634364]
[1745623909464,1.27053969,600.4,598.51,0.30634364]
[1745623909665,1.27053969,600.4,598.3,0.30634364]
[1745623909861,0.29037628,600.35,598.5,0.29037628]
[1745623910063,0.29037628,600.35,598.51,0.30634331]
[1745623910257,0.29037628,600.35,598.3,0.30634331]
[1745623910460,0.29037628,600.35,598.31,0.30634331]
[1745623910658,0.29037628,600.35,598.32,0.30634331]
[1745623910861,0.29037628,600.35,598.33,0.30634331]
[1745623911057,0.29037628,600.35,598.34,0.30634331]
[1745623911261,0.29037628,600.35,598.35,0.30634331]
[1745623911763,0.29037628,600.35,598.36,0.30634331]
[1745623911963,0.29037628,600.35,598.37,0.30634331]
[1745623912166,0.29037628,600.35,598.38,0.30634331]
[1745623912366,0.29037628,600.35,598.39,0.30634331]
[1745623912567,1.27053969,600.64,598.4,0.30634331]
[1745623912866,1.27053969,600.64,598.41,0.30634331]
[1745623913066,1.27053969,600.64,598.23,1.158]
[1745623913269,1.27053969,600.64,598.24,0.30630348]
[1745623913462,1.27053969,600.64,598.25,0.30630348]
[1745623913667,1.27053969,600.64,598.26,0.30630348]
[1745623913863,0.29035447,600.63,598.27,0.30630348]
[1745623914064,0.29035447,600.63,598.28,0.30630348]
[1745623914266,0.29035447,600.63,598.29,0.30630348]
[1745623914464,0.29035447,600.63,598.3,0.30630348]
[1745623914763,0.29035447,600.63,598.31,0.30630348]
[1745623914968,0.29035447,600.63,598.32,0.30630348]
[1745623915165,0.29035447,600.63,598.33,0.30630348]
[1745623915369,0.29035447,600.63,598.34,0.30630348]
[1745623915669,0.29035447,600.63,598.35,0.30630348]
[1745623915969,0.29035447,600.63,598.36,0.30630348]
[1745623916165,0.29035447,600.63,598.37,0.30630348]
[1745623916371,0.29035447,600.63,598.38,0.30630348]
[1745623916672,0.29035447,600.63,598.39,0.30630348]
[1745623916870,0.29035447,600.63,598.4,0.30630348]
[1745623917071,0.29035447,600.63,598.41,0.30630348]
[1745623917371,0.29035447,600.63,598.42,0.30630348]
[1745623917566,0.29035447,600.63,598.43,0.30630348]
[1745623917764,0.29035447,600.63,598.25,0.29035447]
[1745623917965,0.29035447,600.63,598.44,0.30627953]
[1745623918169,0.29035447,600.63,598.45,0.30627953]
[1745623918466,1.27053969,600.71,598.46,0.30627953]
[1745623918772,0.29033752,600.62,598.47,0.30627953]
[1745623919070,1.27053969,600.71,598.48,0.30627953]
[1745623919369,1.27053969,600.71,598.49,0.30627953]
[1745623919570,1.27053969,600.71,598.34,0.30627953]
[1745623919771,1.27053969,600.71,598.33,0.29033752]
[1745623919772,1.27053969,600.81,598.35,0.30627953]
[1745623919969,0.29032783,600.7,598.36,0.30627953]
[1745623920168,1.27053969,600.81,598.37,0.30627953]
[1745623920368,1.27053969,600.81,598.38,0.30627953]
[1745623920570,0.29031572,600.69,598.39,0.30627953]
[1745623920768,1.27053969,600.81,598.4,0.30629009]